Cogmind - Beta 13 @@@ ROGUE MODE // 2024.04.10 @ 18:29:43 Player: anthonyiye Result: Destroyed by as-52340 with Assembled Heavy Rifle Performance ------------- Evolutions (0) 0 Regions Visited (2) 400 Robots Destroyed (13) 65 Value Destroyed (362) 362 Prototype IDs (0) 0 Alien Tech Used (0) 0 Bonus (0) 0 TOTAL SCORE: 827 Bonus ------- None Cogmind --------- Core Integrity 0/250 Matter 236/300 Energy 99/100 System Corruption 2% Temperature Cool (0) Movement Core (100) Ox1 Location -10/Mines Parts ------- > --- POWER (1) -------- (None) > --- PROPULSION (2) --- (None) > --- UTILITY (2) ------ Small Storage Unit > --- WEAPON (2) ------- (None) > --- INVENTORY (8) ---- Ion Engine Light Treads Light Treads Aluminum Leg Aluminum Leg Structural Scanner Targeting Computer Tractor Beam Peak State ------------ > --- POWER ------------ Ion Engine > --- PROPULSION ------- Wheel Wheel > --- UTILITY ---------- Small Storage Unit Sensor Array > --- WEAPON ----------- Assault Rifle Assault Rifle > --- INVENTORY -------- Ion Engine Light Treads Light Treads Aluminum Leg Aluminum Leg Grenade Launcher [Rating: 7] Favorites ----------- Power Ion Engine Engine Ion Engine Propulsion Aluminum Leg Leg Aluminum Leg Wheel Wheel Utility Small Storage Unit Device Sensor Array Storage Small Storage Unit Weapon Assault Rifle Ballistic Gun Assault Rifle Launcher Grenade Launcher Build | -11 -10 -10 ------- Run | Yrd Mat Min Slots Evolved . | . . . Power . | . . . Propulsion . | . . . Utility . | . . . Weapon . | . . . Parts Attached 10 | 6 3 1 Power 1 | 1 . . Engine 1 | 1 . . Core . | . . . Reactor . | . . . Propulsion 4 | 2 2 . Treads . | . . . Leg 2 | . 2 . Wheel 2 | 2 . . Hover . | . . . Flight . | . . . Utility 2 | 1 1 . Device 1 | . 1 . Storage 1 | 1 . . Processor . | . . . Hackware . | . . . Protection . | . . . Artifact . | . . . Weapon 3 | 2 . 1 Energy Gun . | . . . Energy Cannon . | . . . Ballistic Gun 2 | 2 . . Ballistic Cannon . | . . . Launcher 1 | . . 1 Special Weapon . | . . . Impact Weapon . | . . . Slashing Weapon . | . . . Piercing Weapon . | . . . Special Melee Weapon . | . . . Unidentified Prototypes . | . . . Parts Lost 9 | . 3 6 Power 1 | . 1 . Propulsion 4 | . 2 2 Utility 1 | . . 1 Weapon 3 | . . 3 Highest Loss Streak 5 | . 3 5 To Critical Strikes . | . . . Average Slot Usage (%) 86 | . 91 82 Engine 4 | . 11 . Leg 19 | . 6 27 Wheel 7 | . 19 . Device 12 | . 11 13 Storage 14 | . 14 14 Ballistic Gun 20 | . 28 15 Launcher 6 | . . 10 Naked Turns . | . . . Heaviest Build 15 | 14 15 11 Greatest Support 20 | 20 20 20 Greatest Overweight (x) 4 | . 4 1 Average Overweight (x) . | . . . Largest Inventory Capacity 8 | 8 8 8 Average Capacity 7 | 7 8 8 Most Carried 8 | 5 6 8 Average Carried 5 | 2 5 6 Final Capacity 8 | 8 8 8 Final Carried 8 | 5 6 8 Class Distribution -------------------- 100% | Mutant Dominant Class ---------------- Mutant | -10/Materials Mutant | -10/Mines Resources | -11 -10 -10 ----------- Run | Yrd Mat Min Matter Collected 476 | 214 225 37 Remotely . | . . . Salvage Created 395 | . 337 58 Parts 22 | . 21 1 Haulers Intercepted . | . . . Recyclers Shooed 1 | . 1 . Parts Field Recycled . | . . . Retrieved Matter . | . . . Parts Self-Destructed . | . . . Prevented . | . . . Kills | -11 -10 -10 ------- Run | Yrd Mat Min Combat Hostiles Destroyed 8 | . 6 2 Guns 7 | . 6 1 AOE 1 | . . 1 Classes Destroyed 5 | . 4 1 Worker 1 | . 1 . Builder 1 | . . 1 Recycler 1 | . 1 . Watcher 2 | . 2 . Grunt 8 | . 6 2 Best Kill Streak 5 | . 5 2 Combat Bots Only 5 | . 5 2 Max Kills in Single Turn 2 | . 2 2 Gunslinging . | . . . Exploded 1 | . . 1 Melee . | . . . Uniques/NPCs Destroyed . | . . . Combat | -11 -10 -10 -------- Run | Yrd Mat Min Hostile Shots Fired 82 | . 32 50 Missed 24 | . 5 19 Damage Taken 917 | . 442 475 Core 258 | . 100 158 Absorbed by Shields . | . . . Core Remaining (%) 100 | 100 . . Volleys Fired 38 | . 25 13 Largest 2 | . 2 2 Hottest 50 | . 40 50 Shots Fired 73 | . 50 23 Gun 67 | . 50 17 Cannon . | . . . Launcher 6 | . . 6 Special . | . . . Kinetic 67 | . 50 17 Thermal . | . . . Explosive 6 | . . 6 Electromagnetic . | . . . Robot Hit Streak 11 | . 11 7 Robot Miss Streak 3 | . 3 2 Penetration Max . | . . . Secondary Targets . | . . . Shots Hit Robots 47 | . 35 12 Core Hits 24 | . 17 7 Critical Kills . | . . . Critical Parts Destroyed . | . . . Critical Strikes . | . . . Melee Attacks . | . . . Impact . | . . . Slashing . | . . . Piercing . | . . . Sneak Attacks . | . . . Combat Hostiles . | . . . Follow-up Attacks . | . . . Damage Inflicted 1044 | . 583 461 Guns 588 | . 446 142 Cannons . | . . . Explosions 453 | . 135 318 Melee . | . . . Ramming 3 | . 2 1 Kinetic 588 | . 446 142 Thermal . | . . . Explosive 453 | . 135 318 Electromagnetic . | . . . Impact . | . . . Slashing . | . . . Piercing . | . . . Highest Corruption 2 | . 2 2 Average Corruption 2 | . 2 2 Corruption Purged . | . . . Corruption Blocked . | . . . Effects 10 | . 3 7 Message Errors 2 | . 1 1 Matter Fused 4 | . 2 2 Heat Flow Errors 1 | . . 1 Energy Discharges 1 | . . 1 Data Loss (minor) 2 | . . 2 Overload Shots . | . . . Overflow Damage 18 | . . 18 Projectiles . | . . . Explosions 18 | . . 18 Melee . | . . . Knockbacks . | . . . Impact . | . . . Kinetic . | . . . Secondary . | . . . Self-Inflicted Damage 182 | . 115 67 Shots 4 | . 1 3 Rammed 1 | . 1 . Targets Rammed 2 | . 1 1 Kicked 1 | . . 1 Crushed . | . . . Highest Temperature 171 | . 5 171 Average Temperature 44 | . 2 73 Received Heat Transfer 340 | . 180 160 Siege Activations . | . . . Robots Corrupted . | . . . Combat Hostiles . | . . . Parts Fried . | . . . Impact Corruptions . | . . . Robots Melted . | . . . Combat Hostiles . | . . . Parts Melted . | . . . Heat Transferred . | . . . Parts Sabotaged . | . . . Parts Stolen . | . . . Parts Stripped . | . . . Power Chain Reactions . | . . . Alert | -11 -10 -10 ------- Run | Yrd Mat Min Peak Influence 235 | . 235 153 Initial 91 | . . 91 Average 106 | . 83 133 Maximum Alert Level 1 | . 1 . Low Security (%) 95 | 100 87 100 Level 1 4 | . 12 . Level 2 . | . . . Level 3 . | . . . Level 4 . | . . . Level 5 . | . . . High Security . | . . . Max Security . | . . . Squads Dispatched 3 | . 3 . Investigation 2 | . 2 . Extermination . | . . . Reinforcement 1 | . 1 . Assault . | . . . Garrison . | . . . Intercept . | . . . Searches Triggered . | . . . Construction Impeded . | . . . Haulers Reinforced . | . . . Active Scanning Responses . | . . . Cargo Convoy Interrupts . | . . . Stealth | -11 -10 -10 --------- Run | Yrd Mat Min Distress Signals . | . . . Communications Jammed . | . . . Distress Signals . | . . . Times Spotted 20 | . 9 11 Peak Tracking Total 15 | . 3 15 Tactical Retreats 1 | . . 1 Traps | -11 -10 -10 ------- Run | Yrd Mat Min Traps Triggered 2 | . 2 . Indirectly . | . . . Trap Hack Attempts . | . . . Triggered . | . . . Disarmed . | . . . Reprogrammed . | . . . Reused . | . . . Traps Extracted . | . . . Installed . | . . . Triggered . | . . . Machines | -11 -10 -10 ---------- Run | Yrd Mat Min Machines Disabled 2 | . 2 . Max in Single Turn 2 | . 2 . Machines Repaired . | . . . Machines Dismantled . | . . . Machines Sabotaged . | . . . Overloaded Fab Kills . | . . . Hacking | -11 -10 -10 --------- Run | Yrd Mat Min Machines Accessed 1 | . 1 . Terminals 1 | . 1 . Fabricators . | . . . Repair Stations . | . . . Recycling Units . | . . . Scanalyzers . | . . . Garrison Access . | . . . Total Hacks 4 | . 4 . Successful . | . . . Failed 4 | . 4 . Catastrophic 2 | . 2 . Database Lockouts . | . . . Manual . | . . . Terminals 4 | . 4 . Fabricators . | . . . Repair Stations . | . . . Recycling Units . | . . . Scanalyzers . | . . . Garrison Access . | . . . Terminal Hacks . | . . . Fabricator Hacks . | . . . Repair Station Hacks . | . . . Recycling Unit Hacks . | . . . Scanalyzer . | . . . Garrison Access Hacks . | . . . Unauthorized Hacks . | . . . Terminals . | . . . Fabricators . | . . . Repair Stations . | . . . Recycling Units . | . . . Scanalyzers . | . . . Garrison Access . | . . . Data Cores Recovered . | . . . Used . | . . . Hacking Detections 1 | . 1 . Full Trace Events 1 | . 1 . Feedback Events . | . . . Feedback Blocked . | . . . Robot Schematics Acquired . | . . . Robots Built . | . . . Authchips . | . . . Time . | . . . Total Robot Build Rating . | . . . Part Schematics Acquired . | . . . Parts Built . | . . . Authchips . | . . . Time . | . . . Total Part Build Rating . | . . . Parts Repaired . | . . . Time . | . . . Parts Recycled . | . . . Recycled Matter . | . . . Retrieved Matter . | . . . Retrieved Components . | . . . Parts Scanalyzed . | . . . Part Schematics Acquired . | . . . Parts Damaged . | . . . Bothacking | -11 -10 -10 ------------ Run | Yrd Mat Min Used RIF Installer . | . . . Robots Hacked . | . . . Non-combat . | . . . Combat . | . . . Robot Hacks Applied . | . . . Relay Couplers Released . | . . . Fabnet Peak Effective % . | . . . Robots Rewired . | . . . Allies Hacked . | . . . Hacks Repelled . | . . . Allies | -11 -10 -10 -------- Run | Yrd Mat Min Total Allies . | . . . Largest Group . | . . . Highest-Rated Group . | . . . Highest-Rated Ally . | . . . Total Orders . | . . . Ally Attacks . | . . . Total Damage . | . . . Kills . | . . . Allies Corrupted . | . . . Allies Melted . | . . . Intel | -11 -10 -10 ------- Run | Yrd Mat Min Robot Analysis Total . | . . . Derelict Logs Recovered 1 | . . 1 Drone Launches . | . . . Drone Recoveries . | . . . Exploration | -11 -10 -10 ------------- Run | Yrd Mat Min Turns Passed 618 | 42 217 359 Spaces Moved 425 | 36 125 264 Core 5 | 1 2 2 Treads . | . . . Legs 284 | . 22 262 Wheels 136 | 35 101 . Hover . | . . . Flight . | . . . Fastest Speed 50 | 50 80 100 Average Speed 107 | 79 89 119 Slowest Speed 250 | 80 250 120 Overloaded Moves . | . . . Propulsion Burnouts . | . . . Robots Hopped . | . . . Cave-ins Triggered . | . . . Exploration Rate (%) 26 | 3 27 49 Regions Visited 2 Branch Regions 1 Pre-discovered Areas 1 | . . 1 Known Exits Taken . | . . . Unknown Exits Taken 2 | 1 1 . Scrap Searched 1 | . . 1 Spaces Dug . | . . . Terrain Destroyed 60 | . 14 46 Melee . | . . . Projectile . | . . . AOE 60 | . 14 46 Terrain Rammed . | . . . Walls Destroyed . | . . . Machines Disabled . | . . . Actions | -11 -10 -10 --------- Run | Yrd Mat Min Total 507 | 46 177 284 Wait 23 | . 21 2 Move 423 | 35 124 264 Hop . | . . . Pick Up 11 | 5 3 3 Fast Attach 7 | 6 1 . Attach 3 | . 2 1 Detach . | . . . Swap . | . . . Drop . | . . . Fire 38 | . 25 13 Melee . | . . . Ram 1 | . 1 . Kick 1 | . . 1 Crush . | . . . Escape Stasis . | . . . Rewire . | . . . Trap . | . . . Miscellaneous . | . . . Route ------- -11/Scrapyard -10/Materials -10/Mines History --------- Turn | Location | Event 18 | -11/Scrapyard | Discovered new exit (range 16) 43 | -11/Scrapyard | Entered Materials 84 | -10/Materials | Discovered new exit (range 13) 259 | -10/Materials | Lost 3 parts (1p2n) 260 | -10/Materials | Entered Mines 313 | -10/Mines | Build established: Mutant 318 | -10/Mines | Core integrity fell below 50% 429 | -10/Mines | Learned location of Storage (-9) 552 | -10/Mines | Learned 4 Materials zone layouts 555 | -10/Mines | Assembled infested the area 560 | -10/Mines | Assisted by a Guerilla fighting off Assembled 610 | -10/Mines | Core integrity fell below 20% 619 | -10/Mines | Destroyed by as-52340 with Assembled Heavy Rifle Last Messages --------------- come on!" HV Slug penetrates Wall. as-70633 suffers critical hit (Destroy). BD-55J(h) destroyed. as-88433 sneak attacks. as-04021 sneak attacks. T-07 Excavator destroyed. K-01 Serf collects debris. Assault Rifle destroyed. U-05 Engineer destroyed. K-01 Serf collects debris. Kicked U-05 Engineer out of the way. Aluminum Leg destroyed. U-05 Engineer destroyed. Grenade Launcher destroyed. Destroyed Grenade Launcher. Sensor Array destroyed. Destroyed Sensor Array. as-69353 destroyed. Aluminum Leg destroyed. Map ----- +----------------------------------------------------+ | ????#### % ### ! ###????????????????????????? | | ???????## ! #????????????????????????? | | ????????## #???????????????????????? | | ?????????# ###### #???????????????????????? | | ##??####### ##????## ##???????????????????????? | | #### ## #???????####????????????????????????? | | ## ????????????????????????????????????? | | ##??????????????????????????????????? | | ##?????????????????????????????????? | | # ##????????????????????????????????? | | ## #????????????????????????????????? | | ?# ##??# #????????????????????????????????? | | ?## ##???## #????????????????????????????????? | | ??######?????# #????????????????????????????????? | | ?????????????# #????????????????????????????????? | | ##???????????# #????????????????????????????????? | | ##??????????# ######???????????????????????????? | | #??????????# ##??????????????????????????? | | #??????????# ##?????????????????????????? | | #??????????### aa ##????????????????????????? | | #???????????# %= #????????????????????????? | | #???????####### ua ##???????????????????????? | | #??####### ## ##??????????????????????? | | #?## ## ### #???#??????????????????? | | #?# ##t #??????????????????? | | ### t @ #??????????????????? | | ## #### ###### ######??????????????????? | | ##??## #????# #???????????????????????? | | ###????## ##????# #???????????????????????? | | ##???????###????#r #??????????????????????? | | #?????????????? #??????????????????????? | | ##???????????? k ##??????????????????????? | | #???????????# #### ##???????????????????????? | | ????????????# ????# ####????????????????????????? | | ????????????#?????# #???????????????????????????? | | ??????????????????# #???????????????????????????? | | ??????????????????# #???????????????????????????? | | ??????????????????# ???????????????????????????? | | ??????????????????####???????????????????????????? | | ?????????????????????????????????????????????????? | | ?????????????????????????????????????????????????? | | ?????????????????????????????????????????????????? | | ?????????????????????????????????????????????????? | | ?????????????????????????????????????????????????? | | ?????????????????????????????????????????????????? | | ?????????????????????????????????????????????????? | | ?????????????????????????????????????????????????? | | ?????????????????????????????????????????????????? | | ?????????????????????????????????????????????????? | | ?????????????????????????????????????????????????? | +----------------------------------------------------+ Best States ------------- Heat Dissipation 25 Energy Generation 10 Energy Capacity 250 Matter Stores 300 Matter Capacity 300 Sight Range 16 Robot Scan Range 14 Terrain Scan Density 10 Evasion (%) 55 Item Schematics ----------------- None Robot Schematics ------------------ None Fabricated ------------ Nothing Alien Tech Used ----------------- None Achievements -------------- None Challenges ------------ None Game ------ Seed ProtonIonicLog Manual? 0 Play Time 00:07:15 Cumulative 9.8 hours Start 2024.04.10 @ 18:22:34 End 2024.04.10 @ 18:29:43 Sessions 1 Manual Loads 0 Difficulty Rogue Special Mode None Game No. 6 Rogue 6 Adventurer 0 Explorer 0 Win Type - Total 0 Types 0/0/0/0/0/0/0/0/0 Lore% 5 Gallery% 14 Achievement% 17 Wizard Run 0 Options --------- Layout 1 ASCII 0 Keyboard 1 Movement Arrows Keybinds 0 Fullscreen 1 Font 32/SmallcapsGlow Map View 50x35 Zoom Use 0% Tactical HUD 0 Map Filters NONE Filters NONE Steam 0 RUN: 11f8b2f7-e37b-4df0-8658-c52d7e46f25b